bitfinex-derivatives/quotes_BNBF0:USTF0_20250529
["timestamp","ask_amount","ask_price","bid_price","bid_amount"]
[1748487025905,0.2899349,689.81,688.82,0.55775223]
[1748487026104,0.2899349,689.81,688.81,0.567]
[1748487026803,0.2899349,689.81,688.82,0.55774711]
[1748487027006,0.2899349,689.81,688.81,0.567]
[1748487027504,0.2899349,689.81,688.82,0.55776828]
[1748487027708,0.2899349,689.81,688.81,0.567]
[1748487027902,0.2899349,689.81,688.82,0.55774441]
[1748487028103,0.2899349,689.81,688.83,0.55775106]
[1748487028307,0.2899349,689.81,688.81,0.567]
[1748487028807,0.2899349,689.81,688.82,0.55780747]
[1748487029008,0.2899349,689.81,688.83,0.55780747]
[1748487029209,0.2899349,689.81,688.84,0.55780714]
[1748487029406,0.2899349,689.81,688.85,0.55780714]
[1748487029607,0.2899349,689.81,688.86,0.55778154]
[1748487029803,0.2899349,689.81,688.87,0.55778154]
[1748487030011,0.2899349,689.81,688.88,0.55783268]
[1748487030211,0.2899349,689.81,688.89,0.55783359]
[1748487030512,0.2899349,689.81,688.9,0.55783359]
[1748487030809,0.2899349,689.81,688.91,0.55783359]
[1748487031013,0.2899349,689.81,688.92,0.55783359]
[1748487031315,0.2899349,689.81,688.93,0.55778806]
[1748487031608,0.2899349,689.81,688.94,0.55778806]
[1748487031813,0.2899349,689.81,688.81,0.567]
[1748487031814,0.2899349,689.81,688.95,0.55776844]
[1748487032113,0.2899349,689.81,688.96,0.55776713]
[1748487032309,0.2899349,689.81,688.97,0.55776713]
[1748487032613,0.2899349,689.81,688.98,0.55776652]
[1748487032814,0.2899349,689.81,688.99,0.55776669]
[1748487033018,0.2899349,689.81,689.0,0.55775757]
[1748487033210,0.2899349,689.81,688.81,1.02683121]
[1748487033609,0.2899349,689.81,688.83,0.45983121]
[1748487033814,0.2899349,689.81,688.82,0.45983121]
[1748487034115,0.2899349,689.81,688.83,0.45983121]
[1748487034617,0.2899349,689.81,688.84,0.55775967]
[1748487034913,0.2899349,689.81,688.85,0.55775967]
[1748487035117,0.2899349,689.81,688.86,0.55782299]
[1748487035317,0.2899349,689.81,688.87,0.55782299]
[1748487035511,0.2899349,689.81,688.81,0.567]
[1748487035817,0.2899349,689.81,688.82,0.55782663]
[1748487036016,0.2899349,689.81,688.83,0.55782663]
[1748487036215,0.2899349,689.81,688.84,0.55782663]
[1748487036411,0.2899349,689.81,688.85,0.55782663]
[1748487036618,0.2899349,689.81,688.86,0.5578688]
[1748487036815,0.2899349,689.81,689.01,0.45983121]
[1748487037717,0.2899349,689.81,689.02,0.55786096]
[1748487037916,0.2899349,689.81,689.01,0.45983121]
[1748487038717,0.2899349,689.81,689.02,0.55786967]
[1748487039014,0.2899349,689.81,689.01,0.45983121]
[1748487039218,0.2899349,689.81,689.02,0.55786307]
[1748487039418,0.2899349,689.81,689.01,0.45983121]
[1748487039618,0.2899349,689.81,689.02,0.45983121]
[1748487040417,0.2899349,689.81,689.05,0.45983121]
[1748487040819,0.2899349,689.81,689.0,0.45983121]
[1748487041020,0.2899349,689.81,689.01,0.55809154]
[1748487041319,0.2899349,689.81,689.02,0.38]
[1748487041518,0.2899349,689.81,689.09,0.45983121]
[1748487041714,0.2899349,689.81,689.1,0.45983121]
[1748487042720,0.2899349,689.81,689.11,0.5586137]
[1748487042921,0.2899349,689.81,689.1,0.45983121]
[1748487043121,0.2899349,689.81,689.11,0.55861487]
[1748487043318,0.2899349,689.81,689.02,0.38]
[1748487043719,0.2899349,689.81,689.03,0.55913812]
[1748487043921,0.2899349,689.81,689.02,0.38]
[1748487044319,0.2899349,689.81,689.03,0.5591611]
[1748487044521,0.2899349,689.81,689.02,0.38]
[1748487045119,0.2899349,689.81,689.03,0.55922164]
[1748487045325,0.2899349,689.81,689.04,0.55922175]
[1748487045522,0.2899349,689.81,689.02,0.38]
[1748487045721,0.2899349,689.81,689.03,0.55922438]
[1748487045923,0.2899349,689.81,689.02,0.38]
[1748487046522,0.2899349,689.81,689.03,0.55922655]
[1748487046728,0.2899349,689.81,689.02,0.38]
[1748487048026,0.2899349,689.81,689.03,0.55922829]
[1748487048226,0.2899349,689.81,689.02,0.38]
[1748487048929,0.2899349,689.81,689.03,0.55946824]
[1748487049130,0.2899349,689.81,689.02,0.38]
[1748487050029,0.2899349,689.81,689.03,0.55944811]
[1748487050229,0.2899349,689.81,689.02,0.38]
[1748487050428,0.2899349,689.81,689.03,0.5594135]
[1748487050625,0.2899349,689.81,689.03,0.439]
[1748487051325,0.2899349,689.81,689.04,0.55937777]
[1748487051530,0.2899349,689.81,689.03,0.439]
[1748487054532,0.2899349,689.81,689.04,0.55951535]
[1748487054832,0.2899349,689.81,689.03,0.439]
[1748487055032,0.2899349,689.81,689.04,0.55952268]
[1748487055327,0.2899349,689.81,689.05,0.55951601]
[1748487055527,0.2899349,689.81,689.03,0.439]
[1748487055726,0.2899349,689.81,689.04,0.55951599]
[1748487055932,0.2899349,689.81,689.03,0.439]
[1748487056327,0.2899349,689.81,689.04,0.55952067]
[1748487056532,0.2899349,689.81,689.05,0.55948401]
[1748487056730,0.2899349,689.81,689.06,0.55948251]
[1748487056932,0.2899349,689.81,689.03,0.439]
[1748487057227,0.2899349,689.81,689.04,0.55974874]
[1748487057533,0.2899349,689.81,689.03,0.439]
[1748487059030,0.2899349,689.81,689.04,0.56040152]
[1748487059331,0.2899349,689.81,689.03,0.439]
[1748487059734,0.2899349,689.81,689.04,0.56047036]
[1748487059931,0.2899349,689.81,689.05,0.56047036]
[1748487060136,0.2899349,689.81,689.06,0.56047036]
[1748487060337,0.2899349,689.81,689.07,0.56047036]
[1748487060534,0.2899349,689.81,689.08,0.56047317]
[1748487060733,0.2899349,689.81,689.03,0.439]
[1748487060931,0.2899349,689.81,689.04,0.56046316]
[1748487061432,0.2899349,689.81,689.03,0.439]
[1748487061930,0.2899349,689.81,689.04,0.56048106]
[1748487062131,0.2899349,689.81,689.03,0.439]
[1748487062730,0.2899349,689.81,689.04,0.56044703]
[1748487062930,0.2899349,689.81,689.03,0.439]
[1748487063536,0.2899349,689.81,689.04,0.56043852]
[1748487063735,0.2899349,689.81,689.03,0.439]
[1748487064538,0.2899349,689.81,689.04,0.56041106]
[1748487064738,0.2899349,689.81,689.03,0.439]
[1748487065033,0.2899349,689.81,689.04,0.56045509]
[1748487065238,0.2899349,689.81,689.05,0.56045073]
[1748487065437,0.2899349,689.81,689.03,0.439]
[1748487066436,0.2899349,689.81,689.04,0.56045786]
[1748487066737,0.2899349,689.81,689.03,0.439]
[1748487067641,0.2899349,689.81,689.04,0.56037374]
[1748487067841,0.2899349,689.81,689.03,0.439]
[1748487068642,0.2899349,689.81,689.02,0.38]
[1748487070147,0.2899349,689.81,689.03,0.56073407]
[1748487070347,0.2899349,689.81,689.02,0.38]
[1748487070659,0.2899349,689.81,689.03,0.56072974]
[1748487070847,0.2899349,689.81,689.02,0.38]
[1748487071045,0.2899349,689.81,689.04,0.396]
[1748487071743,0.2899349,689.81,689.05,0.56074438]
[1748487071947,0.2899349,689.81,689.04,0.396]
[1748487072147,0.2899349,689.81,689.05,0.56073698]
[1748487072348,0.2899349,689.81,689.06,0.56073698]
[1748487072549,0.2899349,689.81,689.07,0.56008656]
[1748487072745,0.2899349,689.81,689.08,0.56009046]
[1748487073049,0.2899349,689.81,689.09,0.56009043]
[1748487073250,0.2899349,689.81,689.1,0.56009043]
[1748487073549,0.2899349,689.81,689.11,0.56008932]
[1748487073848,0.2899349,689.81,689.04,0.396]
[1748487073849,0.2899349,689.81,689.12,0.56008896]
[1748487074048,0.2899349,689.81,689.13,0.56008879]
[1748487074247,0.2899349,689.81,689.14,0.56008879]
[1748487074448,0.2899349,689.81,689.15,0.56008331]
[1748487074648,0.2899349,689.81,689.04,0.396]
[1748487074849,0.2899349,689.81,689.05,0.56008181]
[1748487075045,0.2899349,689.81,689.06,0.56008181]
[1748487075250,0.2899349,689.81,689.07,0.56008181]
[1748487075450,0.2899349,689.81,689.08,0.56008181]
[1748487075645,0.2899349,689.81,689.09,0.56008181]
[1748487075851,0.2899349,689.81,689.1,0.5597769]
[1748487076151,0.2899349,689.81,689.04,0.396]
[1748487076352,0.2899349,689.81,689.05,0.55978137]
[1748487076652,0.2899349,689.81,689.04,0.396]
[1748487076653,0.2899349,689.81,689.06,0.55978315]
[1748487076851,0.2899349,689.81,689.07,0.55978315]
[1748487077050,0.2899349,689.81,689.08,0.55960442]
[1748487077352,0.2899349,689.81,689.09,0.55959562]
[1748487077548,0.2899349,689.81,689.1,0.55959183]
[1748487077851,0.2899349,689.81,689.11,0.55959183]
[1748487078044,0.2899349,689.81,689.04,0.396]
[1748487078045,0.2899349,689.81,689.12,0.55959183]
[1748487078249,0.2899349,689.81,689.04,0.396]
[1748487078250,0.2899349,689.81,689.13,0.55984254]
[1748487078552,0.2899349,689.81,689.14,0.55984254]
[1748487078753,0.2899349,689.81,689.04,0.396]
[1748487078952,0.2899349,689.81,689.05,0.55974336]
[1748487079154,0.2899349,689.81,689.04,0.396]
[1748487080254,0.2899349,689.81,689.05,1.01569864]
[1748487080448,0.2899349,689.81,689.06,0.55969775]
[1748487080648,0.2899349,689.81,689.05,0.456]
[1748487083351,0.2899349,689.81,689.06,0.55958596]
[1748487083654,0.2899349,689.81,689.05,0.456]
[1748487084458,0.2899349,689.81,689.06,0.55958128]
[1748487084754,0.2899349,689.81,689.05,0.456]
[1748487085355,0.2899349,689.81,689.06,0.55955125]
[1748487085659,0.2899349,689.81,689.05,0.456]
[1748487086958,0.2899349,689.81,689.06,0.55956081]
[1748487087158,0.2899349,689.81,689.07,0.55956008]
[1748487087458,0.2899349,689.81,689.05,0.456]
[1748487087858,0.2899349,689.81,689.06,0.55970898]
[1748487088053,0.2899349,689.81,689.05,0.456]
[1748487088054,0.2899349,689.81,689.07,0.55970922]
[1748487088354,0.2899349,689.81,689.05,0.456]
[1748487088554,0.2899349,689.81,689.06,0.55974174]
[1748487088859,0.2899349,689.81,689.07,0.55974024]
[1748487089057,0.2899349,689.81,689.08,0.55974024]
[1748487089359,0.2899349,689.81,689.05,0.456]
[1748487090459,0.2899349,689.81,689.06,0.447]
[1748487090655,0.2899349,689.81,689.07,0.55976169]
[1748487090859,0.2899349,689.81,689.06,0.447]
[1748487091054,0.2899349,689.81,689.07,0.55982317]
[1748487091254,0.2899349,689.81,689.06,0.447]
[1748487092660,0.2899349,689.81,689.07,0.55999097]
[1748487092856,0.2899349,689.81,689.06,0.447]
[1748487093358,0.2899349,689.81,689.07,0.56049956]
[1748487093662,0.2899349,689.81,689.06,0.447]
[1748487095162,0.2899349,689.81,689.07,0.56048888]
[1748487095361,0.2899349,689.81,689.06,0.447]
[1748487095559,0.2899349,689.81,689.07,0.56049227]
[1748487095762,0.2899349,689.81,689.06,0.447]
[1748487097059,0.2899349,689.81,689.07,0.5617547]
[1748487097264,0.2899349,689.81,689.08,0.56175523]
[1748487097960,0.2899349,689.81,689.09,0.56172569]
[1748487098264,0.2899349,689.81,689.1,0.56172041]
[1748487098458,0.2899349,689.81,689.11,0.56166842]
[1748487098663,0.2899349,689.81,689.08,0.56175523]
[1748487098859,0.2899349,689.81,689.09,0.56167008]
[1748487099065,0.2899349,689.81,689.1,0.56166591]
[1748487099259,0.2899349,689.81,689.11,0.56161204]
[1748487099564,0.2899349,689.81,689.12,0.561623]
[1748487099860,0.2899349,689.81,689.08,0.56175523]
[1748487100063,0.2899349,689.81,689.09,0.56160881]
[1748487100264,0.2899349,689.81,689.08,0.56175523]
[1748487100460,0.2899349,689.81,689.09,0.56161073]
[1748487100665,0.2899349,689.81,689.1,0.56161017]
[1748487100864,0.2899349,689.81,689.08,0.56175523]
[1748487102165,0.2899349,689.81,689.09,0.56181438]
[1748487102361,0.2899349,689.81,689.08,0.56175523]
[1748487104669,0.2899349,689.81,689.09,0.56186119]
[1748487104968,0.2899349,689.81,689.1,0.56186119]
[1748487105265,0.2899349,689.81,689.11,0.56186119]
[1748487105469,0.2899349,689.81,689.12,0.56177688]
[1748487105669,0.2899349,689.81,689.13,0.56177522]
[1748487105872,0.2899349,689.81,689.14,0.56176409]
[1748487106069,0.2899349,689.81,689.15,0.56175912]
[1748487106270,0.2899349,689.81,689.16,0.56175912]
[1748487106465,0.2899349,689.81,689.17,0.56175912]
[1748487106669,0.2899349,689.81,689.18,0.56175912]
[1748487106871,0.2899349,689.81,689.19,0.56175912]
[1748487107071,0.2899349,689.81,689.08,0.56175523]
[1748487107367,0.2899349,689.81,689.09,0.56177422]
[1748487107572,0.2899349,689.81,689.1,0.56177422]
[1748487107766,0.2899349,689.81,689.11,0.56177334]
[1748487107967,0.2899349,689.81,689.08,0.56175523]
[1748487108168,0.2899349,689.81,689.09,0.56178298]
[1748487108365,0.2899349,689.81,689.08,0.56175523]
[1748487109070,0.2899349,689.81,689.09,0.56177715]
[1748487109269,0.2899349,689.81,689.08,0.56175523]
[1748487109471,0.2899349,689.81,689.09,0.56177471]
[1748487109673,0.2899349,689.81,689.08,0.56175523]
[1748487110467,0.2899349,689.81,689.09,0.56178751]
[1748487110672,0.2899349,689.81,689.08,0.56175523]
[1748487111375,0.2899349,689.81,689.09,0.56179008]
[1748487111571,0.2899349,689.81,689.1,0.56179008]
[1748487111776,0.2899349,689.81,689.11,0.56179008]
[1748487112078,0.2899349,689.81,689.12,0.56179008]
[1748487112378,0.2899349,689.81,689.13,0.56179926]
[1748487112576,0.2899349,689.81,689.14,0.56179531]
[1748487112777,0.2899349,689.81,689.08,0.56175523]
[1748487113276,0.2899349,689.81,689.09,0.56181671]
[1748487113477,0.2899349,689.81,689.08,0.56175523]
[1748487114778,0.2899349,689.81,689.09,0.56180384]
[1748487114977,0.2899349,689.81,689.08,0.56175523]
[1748487114978,0.2899349,689.81,689.1,0.56180358]
[1748487115177,0.2899349,689.81,689.08,0.56175523]
[1748487115772,0.2899349,689.81,689.09,0.56180416]
[1748487115978,0.2899349,689.81,689.1,0.56180416]
[1748487116174,0.2899349,689.81,689.11,0.56180416]
[1748487116477,0.2899349,689.81,689.12,0.56209915]
[1748487116674,0.2899349,689.81,689.08,0.56175523]
[1748487116878,0.2899349,689.81,689.09,0.56209908]
[1748487117077,0.2899349,689.81,689.08,0.56175523]
[1748487117978,0.2899349,689.81,689.09,0.56205444]
[1748487118175,0.2899349,689.81,689.08,0.56175523]
[1748487119278,0.2899349,689.81,689.09,0.406]
[1748487119475,0.2899349,689.81,689.1,0.56204918]
[1748487119674,0.2899349,689.81,689.09,0.406]
[1748487120781,0.2899349,689.81,689.1,1.12395939]
[1748487121085,0.2899349,689.81,689.1,0.56198066]
[1748487121979,0.2899349,689.81,689.11,0.56197845]
[1748487122180,0.2899349,689.81,689.12,0.56196975]
[1748487122382,0.2899349,689.81,689.13,0.56198318]
[1748487122583,0.2899349,689.81,689.14,0.56198313]
[1748487122785,0.2899349,689.81,689.1,0.56198066]
[1748487123181,0.2899349,689.81,689.11,1.60268126]
[1748487123385,0.2899349,689.81,689.11,1.04055323]
[1748487123585,0.2899349,689.81,689.12,1.60277494]
[1748487123788,0.2899349,689.81,689.11,1.04055323]
[1748487123987,0.2899349,689.81,689.12,1.0406189]
[1748487124189,0.2899349,689.81,689.13,1.60275861]
[1748487124384,0.2899349,689.81,689.11,1.04055323]
[1748487124385,0.2899349,689.81,689.14,0.56214897]
[1748487124585,0.2899349,689.81,689.15,1.0406159]
[1748487124785,0.2899349,689.81,689.11,1.04055323]
[1748487125185,0.2899349,689.81,689.12,0.56217803]
[1748487125386,0.2899349,689.81,689.12,1.04064804]
[1748487125888,0.2899349,689.81,689.13,1.60083111]
[1748487126087,0.2899349,689.81,689.14,1.60083111]
[1748487126288,0.2899349,689.81,689.12,1.04064804]
[1748487126786,0.2899349,689.81,689.13,1.04442412]
[1748487126989,0.2899349,689.81,689.14,1.60477524]
[1748487127190,0.2899349,689.81,689.12,1.04064804]
[1748487127391,0.2899349,689.81,689.13,1.60478787]
[1748487127688,0.2899349,689.81,689.12,1.04064804]
[1748487127689,0.2899349,689.81,689.14,1.60478787]
[1748487127985,0.2899349,689.81,689.15,1.04444085]
[1748487128190,0.2899349,689.81,689.16,1.60483447]
[1748487128392,0.2899349,689.81,689.17,1.60596948]
[1748487128592,0.2899349,689.81,689.18,1.60596958]
[1748487128793,0.2899349,689.81,689.19,1.60601901]
[1748487128995,0.2899349,689.81,689.2,1.60601901]
[1748487129193,0.2899349,689.81,689.21,1.60610587]
[1748487129388,0.2899349,689.81,689.22,1.60610587]
[1748487129587,0.2899349,689.81,689.23,1.60610587]
[1748487129790,0.2899349,689.81,689.24,1.60610587]
[1748487130094,0.2899349,689.81,689.12,1.04064804]
[1748487130095,0.2899349,689.81,689.25,1.60625047]
[1748487130289,0.2899349,689.81,689.26,1.60628788]
[1748487130492,0.2899349,689.81,689.27,1.60628788]
[1748487130795,0.2899349,689.81,689.28,1.60485441]
[1748487130992,0.2899349,689.81,689.29,1.60485441]
[1748487131191,0.2899349,689.81,689.3,1.60485441]
[1748487131388,0.2899349,689.81,689.12,1.04064804]
[1748487131594,0.2899349,689.81,689.13,1.60478752]
[1748487131889,0.2899349,689.81,689.12,1.04064804]
[1748487131890,0.2899349,689.81,689.14,1.60480107]
[1748487132086,0.2899349,689.81,689.15,1.60480107]
[1748487132292,0.2899349,689.81,689.16,1.60480107]
[1748487132595,0.2899349,689.81,689.17,1.98280107]
[1748487132793,0.2899349,689.81,689.18,1.60480107]
[1748487132994,0.2899349,689.81,689.19,1.60480107]
[1748487133190,0.2899349,689.81,689.2,1.60480107]
[1748487133390,0.2899349,689.81,689.21,1.60480107]
[1748487133589,0.2899349,689.81,689.22,1.60526479]
[1748487133894,0.2899349,689.81,689.23,1.04426109]
[1748487134091,0.2899349,689.81,689.24,1.04426968]
[1748487134296,0.2899349,689.81,689.17,0.378]
[1748487134491,0.2899349,689.81,689.18,0.56049426]
[1748487134697,0.2899349,689.81,689.17,0.378]
[1748487134698,0.2899349,689.81,689.19,0.56049374]
[1748487134895,0.2899349,689.81,689.17,0.378]
[1748487135597,0.2899349,689.81,689.18,0.56051604]
[1748487135797,0.2899349,689.81,689.19,1.04426356]
[1748487135996,0.2899349,689.81,689.2,1.04426097]
[1748487136296,0.2899349,689.81,689.17,0.378]
[1748487136297,0.2899349,689.81,689.21,1.04425972]
[1748487136493,0.2899349,689.81,689.17,0.378]
[1748487136693,0.2899349,689.81,689.18,1.04426713]
[1748487136897,0.2899349,689.81,689.17,0.378]
[1748487137092,0.2899349,689.81,689.18,0.56052236]
[1748487137297,0.2899349,689.81,689.17,0.378]
[1748487137298,0.2899349,689.81,689.19,1.60469955]
[1748487137497,0.2899349,689.81,689.19,1.0441764]
[1748487138398,0.2899349,689.81,689.2,1.04423251]
[1748487138593,0.2899349,689.81,689.21,0.56055794]
[1748487138799,0.2899349,689.81,689.22,1.6047926]
[1748487138998,0.2899349,689.81,689.23,1.6047926]
[1748487139198,0.2899349,689.81,689.24,1.6047926]
[1748487139498,0.2899349,689.81,689.25,1.60469166]
[1748487139700,0.2899349,689.81,689.26,0.56056685]
[1748487139895,0.2899349,689.81,689.27,0.56056665]
[1748487140096,0.2899349,689.81,689.28,0.56056665]
[1748487140295,0.2899349,689.81,689.29,0.56056665]
[1748487140501,0.2899349,689.81,689.3,0.56056665]
[1748487140701,0.2899349,689.81,689.31,0.56056665]
[1748487140897,0.2899349,689.81,689.32,0.56056665]
[1748487141101,0.2899349,689.81,689.33,0.56056665]
[1748487141297,0.2899349,689.81,689.19,1.0441764]
[1748487141503,0.2899349,689.81,689.2,0.5606304]
[1748487141701,0.2899349,689.81,689.21,0.56060169]
[1748487141898,0.2899349,689.81,689.22,0.56049417]
[1748487142099,0.2899349,689.81,689.23,0.56049417]
[1748487142406,0.2899349,689.81,689.21,0.474]
[1748487142599,0.2899349,689.81,689.22,0.56047299]
[1748487142902,0.2899349,689.81,689.23,0.56047299]
[1748487143100,0.2899349,689.81,689.21,0.474]
[1748487143305,0.2899349,689.81,689.22,0.56039313]
[1748487143500,0.2899349,689.81,689.21,0.474]
[1748487144007,0.2899349,689.81,689.22,0.56039088]
[1748487144202,0.2899349,689.81,689.23,0.56039088]
[1748487144407,0.2899349,689.81,689.24,0.56038948]
[1748487144702,0.2899349,689.81,689.25,0.56038948]
[1748487144906,0.2899349,689.81,689.26,0.56038948]
[1748487145106,0.2899349,689.81,689.27,0.56035921]
[1748487145307,0.2899349,689.81,689.28,0.56038059]
[1748487145507,0.2899349,689.81,689.21,0.474]
[1748487145708,0.2899349,689.81,689.22,0.56037898]
[1748487146003,0.2899349,689.81,689.23,0.56037898]
[1748487146307,0.2899349,689.81,689.24,0.56037898]
[1748487146503,0.2899349,689.81,689.25,0.56037898]
[1748487146705,0.2899349,689.81,689.26,0.56037898]
[1748487146905,0.2899349,689.81,689.27,0.56037288]
[1748487147210,0.2899349,689.81,689.28,0.56037288]
[1748487147404,0.2899349,689.81,689.29,0.56036305]
[1748487147608,0.2899349,689.81,689.3,0.56032105]
[1748487147803,0.2899349,689.81,689.31,0.56032105]
[1748487148008,0.2899349,689.81,689.32,0.56032105]
[1748487148305,0.2899349,689.81,689.33,0.56032105]
[1748487148509,0.2899349,689.81,689.21,0.474]
[1748487148702,0.2899349,689.81,689.22,0.56013276]
[1748487148902,0.2899349,689.81,689.23,0.56013276]
[1748487149102,0.2899349,689.81,689.24,0.56011911]
[1748487149303,0.2899349,689.81,689.21,0.474]
[1748487149509,0.2899349,689.81,689.22,0.56011505]
[1748487149709,0.2899349,689.81,689.23,0.56011505]
[1748487149912,0.2899349,689.81,689.24,0.56011505]
[1748487150105,0.2899349,689.81,689.25,0.56011505]
[1748487150307,0.2899349,689.81,689.26,0.56011505]
[1748487150508,0.2899349,689.81,689.27,0.55992431]
[1748487150708,0.2899349,689.81,689.28,0.55992192]
[1748487150905,0.2899349,689.81,689.21,0.474]
[1748487151108,0.2899349,689.81,689.22,0.55996973]
[1748487151309,0.2899349,689.81,689.21,0.474]
[1748487151310,0.2899349,689.81,689.23,0.55996973]
[1748487151507,0.2899349,689.81,689.24,0.55996973]
[1748487151707,0.2899349,689.81,689.25,0.55996973]
[1748487151909,0.2899349,689.81,689.26,0.55989757]
[1748487152209,0.2899349,689.81,689.27,0.55989757]
[1748487152410,0.2899349,689.81,689.28,0.55989757]
[1748487152610,0.2899349,689.81,689.29,0.55989757]
[1748487152909,0.2899349,689.81,689.3,0.55985088]
[1748487153106,0.2899349,689.81,689.31,0.55984868]
[1748487153411,0.2899349,689.81,689.32,0.55984868]
[1748487153707,0.2899349,689.81,689.33,0.55984824]
[1748487153911,0.2899349,689.81,689.34,0.55984824]
[1748487154111,0.2899349,689.81,689.35,0.55984824]
[1748487154313,0.2899349,689.81,689.36,0.55984824]
[1748487154512,0.2899349,689.81,689.37,0.55969311]
[1748487154711,0.2899349,689.81,689.38,0.55967468]
[1748487154912,0.2899349,689.81,689.21,0.474]
[1748487155313,0.2899349,689.81,689.22,0.55966261]
[1748487155510,0.2899349,689.81,689.21,0.474]
[1748487157610,0.2899349,689.81,689.22,0.55967017]
[1748487157809,0.2899349,689.81,689.23,0.5596668]
[1748487158014,0.2899349,689.81,689.21,0.474]
[1748487158015,0.2899349,689.81,689.24,0.55966983]
[1748487158315,0.2899349,689.81,689.24,0.48]
[1748487158516,0.2899349,689.81,689.25,0.55966618]
[1748487158717,0.2899349,689.81,689.26,0.55966618]
[1748487158915,0.2899349,689.81,689.27,0.55966618]
[1748487159214,0.2899349,689.81,689.28,0.55966618]
[1748487159409,0.2899349,689.81,689.24,0.48]
[1748487159410,0.2899349,689.81,689.29,0.55966271]
[1748487159609,0.2899349,689.81,689.3,0.55966271]
[1748487159811,0.2899349,689.81,689.31,0.55966271]
[1748487160114,0.2899349,689.81,689.32,0.55963405]
[1748487160313,0.2899349,689.81,689.33,0.55968394]
[1748487160514,0.2899349,689.81,689.34,0.55968394]
[1748487160710,0.2899349,689.81,689.35,0.55968394]
[1748487161010,0.2899349,689.81,689.24,0.48]
[1748487161214,0.2899349,689.81,689.25,0.55968543]
[1748487161414,0.2899349,689.81,689.26,0.55968543]
[1748487161610,0.2899349,689.81,689.27,0.55966456]
[1748487161816,0.2899349,689.81,689.28,0.55966317]
[1748487162011,0.2899349,689.81,689.24,0.48]
[1748487162618,0.2899349,689.81,689.25,0.5596645]
[1748487162913,0.2899349,689.81,689.24,0.48]
[1748487165314,0.2899349,689.81,689.25,0.55976911]
[1748487165521,0.2899349,689.81,689.26,0.55976911]
[1748487165721,0.2899349,689.81,689.27,0.55976911]
[1748487165914,0.2899349,689.81,689.28,0.55976911]
[1748487166117,0.2899349,689.81,689.29,0.55976911]
[1748487166315,0.2899349,689.81,689.3,0.55980546]
[1748487166520,0.2899349,689.81,689.31,0.55980546]
[1748487166714,0.2899349,689.81,689.24,0.48]
[1748487166715,0.2899349,689.81,689.32,0.55980546]
[1748487166913,0.2899349,689.81,689.33,0.55980546]
[1748487167120,0.2899349,689.81,689.34,0.55980546]
[1748487167326,0.2899349,689.81,689.35,0.55980546]
[1748487167518,0.2899349,689.81,689.36,0.55980546]
[1748487167720,0.2899349,689.81,689.24,0.48]
[1748487167919,0.2899349,689.81,689.25,0.55978433]
[1748487168221,0.2899349,689.81,689.26,0.55978908]
[1748487168420,0.2899349,689.81,689.24,0.48]
[1748487168816,0.2899349,689.81,689.25,0.55976522]
[1748487169021,0.2899349,689.81,689.24,0.48]
[1748487169818,0.2899349,689.81,689.25,0.5597617]
[1748487170119,0.2899349,689.81,689.24,0.48]
[1748487170319,0.2899349,689.81,689.25,0.55977952]
[1748487170520,0.2899349,689.81,689.24,0.48]
[1748487170721,0.2899349,689.81,689.25,0.55976896]
[1748487170918,0.2899349,689.81,689.26,0.5597697]
[1748487171124,0.2899349,689.81,689.24,0.48]
[1748487171320,0.2899349,689.81,689.25,0.55977956]
[1748487171524,0.2899349,689.81,689.24,0.48]
[1748487172926,0.2899349,689.81,689.25,0.55979141]
[1748487173225,0.2899349,689.81,689.24,0.48]
[1748487176826,0.2899349,689.81,689.25,0.56039131]
[1748487177028,0.2899349,689.81,689.24,0.48]
[1748487177432,0.2899349,689.81,689.25,0.56039495]
[1748487179530,0.2899349,689.81,689.26,0.56059275]
[1748487179726,0.2899349,689.81,689.27,0.5605915]
[1748487179932,0.2899349,689.81,689.25,0.56039495]
[1748487181633,0.2899349,689.81,689.26,0.56053135]
[1748487181835,0.2899349,689.81,689.27,0.56053135]
[1748487182137,0.2899349,689.81,689.28,0.56030081]
[1748487182337,0.2899349,689.81,689.25,0.56039495]
[1748487183037,0.2899349,689.81,689.26,0.56079718]
[1748487192440,0.2899349,689.81,689.27,0.404]
[1748487197844,0.2899349,689.81,689.28,0.414]
[1748487201446,0.25239156,689.68,689.28,0.414]
[1748487201640,0.28999376,689.67,689.28,0.414]
[1748487244569,0.28999376,689.67,689.29,0.56021848]
[1748487244773,0.28999376,689.67,689.3,0.56021848]
[1748487244972,0.28999376,689.67,689.31,0.56021848]
[1748487245173,0.28999376,689.67,689.32,0.56010871]
[1748487245372,0.28999376,689.67,689.33,0.56010455]
[1748487245569,0.28999376,689.67,689.26,1.04879718]
[1748487247274,0.28999376,689.67,689.27,0.56007933]
[1748487247472,0.28999376,689.67,689.28,0.5600828]
[1748487247672,0.28999376,689.67,689.29,0.56008265]
[1748487247868,0.28999376,689.67,689.3,0.56008265]
[1748487248069,0.28999376,689.67,689.31,0.56008067]